bitfinex/quotes_BTCUSD_20251117
["timestamp","ask_amount","ask_price","bid_price","bid_amount"]
[1763391643849,3.0,95014.0,94974.0,0.09186]
[1763391644005,3.0,95012.0,94974.0,0.09186]
[1763391644211,3.0,95010.0,94974.0,0.09199212]
[1763391644414,1.05194177,95063.0,94974.0,0.09199212]
[1763391644415,3.0,95008.0,94974.0,0.09199212]
[1763391644615,3.0,95006.0,94974.0,0.00013212]
[1763391644817,3.0,95004.0,94974.0,0.01891886]
[1763391645039,0.04341874,95001.0,94974.0,0.00013212]
[1763391645242,0.04341874,95007.0,94974.0,0.00013212]
[1763391645243,3.0,94975.0,94974.0,0.00013212]
[1763391645570,0.21058123,94976.0,94974.0,0.00013212]
[1763391645749,0.253965,94991.0,94974.0,0.00013212]
[1763391646086,0.04341874,94984.0,94974.0,0.00013212]
[1763391646293,3.0,94982.0,94974.0,0.00013212]
[1763391646501,0.06015874,94993.0,94946.0,0.07999212]
[1763391646711,0.01956656,94992.0,94981.0,0.04503]
[1763391646916,0.00013185,94993.0,94981.0,0.04503]
[1763391647129,0.01653482,95032.0,94992.0,0.10416178]
[1763391647345,0.01957089,95031.0,94994.0,0.04341874]
[1763391647554,0.00013212,95032.0,95031.0,0.04503]
[1763391647788,3.0,95031.0,94993.0,0.01041618]
[1763391648019,0.00486808,95030.0,94992.0,0.10416178]
[1763391648223,0.00486808,95030.0,94977.0,0.04341874]
[1763391648224,3.0195817,95029.0,94977.0,0.04341874]
[1763391648428,0.0195817,95029.0,95009.0,0.10416178]
[1763391648633,0.00013212,95032.0,94993.0,0.10416178]
[1763391648634,3.0,95027.0,94993.0,0.10416178]
[1763391648842,3.0,95025.0,94993.0,0.10416178]
[1763391649051,3.0,95023.0,94993.0,0.10416178]
[1763391649268,0.02444875,95022.0,94982.0,0.09186]
[1763391649470,3.0,95020.0,94982.0,0.09186]
[1763391649580,3.0,95018.0,94988.0,0.10416178]
[1763391649817,3.0,95018.0,94983.0,0.02105639]
[1763391649818,0.04341874,95015.0,94983.0,0.02105639]
[1763391650044,3.25391846,95012.0,94967.0,0.02105994]
[1763391650252,0.01052631,95000.0,94967.0,0.02105994]
[1763391650602,0.04379,95014.0,94968.0,0.19602178]
[1763391650603,3.0,94998.0,94968.0,0.19602178]
[1763391650830,3.0,94996.0,94969.0,0.0210595]
[1763391650965,3.0,94994.0,94954.0,0.09186]
[1763391651181,3.0,94992.0,94968.0,0.10416178]
[1763391651498,3.0,94990.0,94969.0,0.0210595]
[1763391651676,0.01958067,94989.0,94969.0,0.19602178]
[1763391651896,0.01958067,94988.0,94970.0,0.02105928]
[1763391652125,0.01958067,94987.0,94970.0,0.09186]
[1763391652277,0.01958067,94986.0,94970.0,0.09186]
[1763391652480,0.01962318,94985.0,94968.0,0.00013185]
[1763391652678,0.01962318,94984.0,94969.0,0.10416178]
[1763391652893,0.01173808,95009.0,94969.0,0.10416178]
[1763391652894,0.01741478,94996.0,94970.0,0.11291928]
[1763391653113,0.04579,95039.0,94988.0,0.10416178]
[1763391653330,3.0,95037.0,94989.0,0.015657]
[1763391653541,3.0,95034.0,94990.0,0.06886]
[1763391653753,3.0,95032.0,94990.0,0.07702674]
[1763391653950,3.0,95030.0,94991.0,0.01310437]
[1763391654176,2.82182313,95028.0,94990.0,0.06886]
[1763391654383,3.04341874,95026.0,94989.0,0.04503]
[1763391654729,0.03137383,95027.0,94969.0,0.11459114]
[1763391654730,0.04341874,95023.0,94981.0,0.04596]
[1763391654873,3.0,95021.0,94986.0,0.10416178]
[1763391655072,3.0,95019.0,94987.0,0.01129724]
[1763391655327,0.21049086,95016.0,94987.0,0.01129724]
[1763391655497,3.0,95014.0,94988.0,0.01278449]
[1763391655707,3.0,95012.0,94959.0,0.04503]
[1763391655886,3.0,95005.0,94969.0,0.10416178]
[1763391656088,3.0,95003.0,94970.0,0.01223057]
[1763391656308,0.01963575,95002.0,94984.0,0.10416178]
[1763391656508,0.01963575,95001.0,94985.0,0.02105595]
[1763391656709,0.01963575,95000.0,94986.0,0.01252177]
[1763391656908,0.01963575,94999.0,94987.0,0.02100098]
[1763391657134,0.01963575,94998.0,94987.0,0.02100098]
[1763391657380,0.01963575,94997.0,94988.0,0.09421]
[1763391657584,0.01963575,94996.0,94988.0,0.09421]
[1763391657904,0.01963575,94995.0,94989.0,0.01373944]
[1763391658030,0.01963575,94994.0,94988.0,0.09421]
[1763391658233,0.01963575,94993.0,94989.0,0.04596]
[1763391658435,0.01963575,94992.0,94980.0,0.04596]
[1763391658661,0.01963575,94991.0,94980.0,0.04596]
[1763391658872,0.01963575,94990.0,94980.0,0.04596]
[1763391659084,0.01963575,94989.0,94980.0,0.04596]
[1763391659293,0.01963575,94988.0,94981.0,0.10712191]
[1763391659494,0.01963575,94987.0,94984.0,0.10416178]
[1763391659721,0.01173808,95033.0,94984.0,0.10416178]
[1763391659933,3.0,95029.0,94985.0,0.09421]
[1763391660135,3.0,95027.0,94999.0,0.10416178]
[1763391660367,0.07463,95039.0,95000.0,0.21942441]
[1763391660368,3.0,95025.0,95000.0,0.21942441]
[1763391660603,0.02513,95039.0,95000.0,0.21942441]
[1763391660604,0.02958429,95024.0,95001.0,0.04341874]
[1763391660803,0.64988817,95020.0,95001.0,0.09421]
[1763391661084,0.64988817,95011.0,94984.0,0.09421]
[1763391661301,0.64988817,94990.0,94984.0,0.09421]
[1763391661531,0.01972286,94989.0,94980.0,0.04596]
[1763391661759,0.01972286,94988.0,94980.0,0.02796]
[1763391661969,0.01972286,94987.0,94980.0,0.02796]
[1763391662179,0.65002029,94990.0,94981.0,0.01796911]
[1763391662180,0.01972286,94986.0,94981.0,0.01796911]
[1763391662462,0.00013212,94990.0,94980.0,0.02796]
[1763391662463,0.01972286,94985.0,94980.0,0.02796]
[1763391662719,0.01972286,94984.0,94980.0,0.02796]
[1763391662922,0.01972286,94983.0,94980.0,0.02796]
[1763391663143,0.01972286,94982.0,94981.0,0.01978583]
[1763391663363,0.01972286,94982.0,94959.0,0.04503]
[1763391663573,0.01972286,94981.0,94960.0,0.19837178]
[1763391663787,0.01972286,94980.0,94961.0,0.02106127]
[1763391663991,0.01972286,94979.0,94962.0,0.09421]
[1763391664208,0.01972286,94978.0,94964.0,0.04341874]
[1763391664418,0.03790939,95030.0,94989.0,0.04596]
[1763391664419,0.02815818,95028.0,94989.0,0.04596]
[1763391664626,0.00986079,95027.0,95023.0,0.04596]
[1763391664843,0.00986079,95026.0,95024.0,0.02104731]
[1763391665058,0.00986079,95025.0,95024.0,0.02104731]
[1763391665273,0.002,95039.0,95024.0,0.04341874]
[1763391665474,0.002,95039.0,95023.0,0.04596]
[1763391665697,0.64988817,95034.0,95017.0,0.09421]
[1763391665911,0.64988817,95027.0,95017.0,7.88e-05]
[1763391666316,0.002,95039.0,95018.0,0.19837178]
[1763391666519,0.02013742,95039.0,95018.0,0.22281284]
[1763391666731,0.002,95039.0,95017.0,0.0942888]
[1763391666963,3.0,95029.0,95017.0,7.88e-05]
[1763391667169,0.01173808,95028.0,95017.0,7.88e-05]
[1763391667371,0.21047339,95024.0,95017.0,7.88e-05]
[1763391667580,0.21047986,95021.0,95017.0,7.88e-05]
[1763391667801,3.0,95019.0,95017.0,7.88e-05]
[1763391668006,0.01173808,95018.0,95017.0,7.88e-05]
[1763391668196,3.0,95018.0,95017.0,7.88e-05]
[1763391668404,3.0,95026.0,95017.0,7.88e-05]
[1763391668607,0.64988817,95027.0,95017.0,7.88e-05]
[1763391668800,3.0,95018.0,95017.0,7.88e-05]
[1763391668997,0.64988817,95000.0,94979.0,0.11526728]
[1763391669215,0.64988817,94990.0,94980.0,0.10416178]
[1763391669400,0.64988817,94990.0,94981.0,0.01707766]
[1763391669630,0.64988817,94990.0,94979.0,0.09434185]
[1763391669839,0.04341874,95023.0,94979.0,0.09434185]
[1763391669840,0.02815818,95038.0,94983.0,0.04341874]
[1763391670041,0.03166947,95076.0,94983.0,0.04341874]
[1763391670042,0.01786973,95028.0,95008.0,0.10416178]
[1763391670249,0.64988817,95020.0,94985.0,0.04341874]
[1763391670456,0.06759,95039.0,94997.0,0.10416178]
[1763391670664,0.64988817,95007.0,94994.0,0.09421]
[1763391670892,0.01173808,95006.0,94982.0,0.10416178]
[1763391671128,0.64988817,94992.0,94981.0,0.09421]
[1763391671371,0.64988817,94992.0,94983.0,0.10416178]
[1763391671572,0.64988817,95000.0,94984.0,0.03328941]
[1763391671786,0.0515,95039.0,94998.0,0.10416178]
[1763391671999,0.01746046,95015.0,94999.0,0.09421]
[1763391672198,3.0,95038.0,94999.0,0.09421]
[1763391672352,0.64988817,95010.0,94999.0,0.09421]
[1763391672613,0.21045184,95034.0,94987.0,0.09421]
[1763391672915,0.64988817,95010.0,94988.0,0.01985036]
[1763391673127,3.0,95038.0,94999.0,0.10416178]
[1763391673328,0.01968003,95039.0,94999.0,0.10416178]
[1763391673329,0.64988817,95020.0,94999.0,0.10416178]
[1763391673543,0.64988817,95020.0,94970.0,0.65988816]
[1763391673544,3.0,95009.0,94971.0,0.09421]
[1763391673774,0.64988817,94992.0,94971.0,0.09421]
[1763391674214,3.01173808,94991.0,94966.0,0.09421]
[1763391674427,0.01173808,94990.0,94966.0,0.09421]
[1763391674631,0.64988817,94992.0,94966.0,0.09421]
[1763391674844,3.0,94990.0,94966.0,0.09421]
[1763391675058,0.64988817,94992.0,94966.0,0.09421]
[1763391675059,0.01173808,94989.0,94966.0,0.09421]
[1763391675282,0.01173808,94991.0,94967.0,0.0191389]
[1763391675511,3.0,94990.0,94968.0,0.02105972]
[1763391675731,3.0,94990.0,94969.0,0.0210595]
[1763391675941,0.64988817,94992.0,94981.0,0.04596]
[1763391676162,0.64988817,94992.0,94983.0,0.09808]
[1763391676367,0.09399,95026.0,94984.0,0.02105617]
[1763391676368,0.01970852,94991.0,94984.0,0.02105617]
[1763391676569,0.01970852,94990.0,94985.0,0.10416178]
[1763391676776,0.01970852,94989.0,94985.0,0.12870465]
[1763391676978,0.64988817,95010.0,94986.0,0.09808]
[1763391677184,0.01970451,95009.0,95000.0,0.10416178]
[1763391677401,0.002,95039.0,95002.0,0.04341874]
[1763391677614,0.01970169,95038.0,95004.0,0.04341874]
[1763391677827,0.64988817,95070.0,95021.0,0.04341874]
[1763391678034,0.64988817,95070.0,95049.0,0.04662]
[1763391678035,0.01969547,95069.0,95049.0,0.04662]
[1763391678268,0.64988817,95060.0,95049.0,0.04662]
[1763391678468,0.01969547,95059.0,95050.0,0.10504385]
[1763391678682,0.64988817,95080.0,95050.0,0.09808]
[1763391678884,0.64988817,95060.0,95036.0,0.04825]
[1763391679090,0.06917526,95078.0,95036.0,0.04825]
[1763391679091,0.64988817,95050.0,95036.0,0.04825]
[1763391679296,0.64988817,95050.0,95023.0,0.10416178]
[1763391679448,0.07405,95077.0,95024.0,0.10831191]
[1763391679648,0.64988817,95050.0,95038.0,0.10416178]
[1763391679847,0.01966548,95049.0,95039.0,0.01180859]
[1763391680083,0.01963835,95079.0,95039.0,0.01180859]
[1763391680084,0.01604073,95059.0,95039.0,0.01180859]
[1763391680294,0.64988817,95049.0,95034.0,0.09808]
[1763391680599,0.64988817,95049.0,95023.0,0.10416178]
[1763391680803,0.64988817,95040.0,95025.0,0.09808]
[1763391681206,0.00013207,95059.0,95038.0,0.10416178]
[1763391681476,0.00013207,95059.0,95039.0,0.00696448]
[1763391681599,0.64988817,95050.0,95038.0,0.10416178]
[1763391682048,0.01749601,95059.0,95049.0,0.04825]
[1763391682280,0.66738418,95059.0,95050.0,0.01075515]
[1763391682494,0.66738418,95059.0,95053.0,0.10416178]
[1763391682495,0.00013207,95059.0,95053.0,0.10416178]
[1763391682704,0.00113207,95059.0,95054.0,0.10714775]
[1763391683103,0.00013207,95059.0,95040.0,0.04825]
[1763391683406,0.00013207,95059.0,95010.0,0.1447]
[1763391683407,3.0,95049.0,95010.0,0.1447]
[1763391683647,0.64988817,95020.0,95000.0,0.10416178]
[1763391683852,0.64988817,95010.0,95000.0,0.10416178]
[1763391684067,0.02631329,95009.0,94986.0,0.09808]
[1763391684283,0.01052299,95030.0,94974.0,0.10416178]
[1763391684284,0.64988817,94996.0,94974.0,0.10416178]
[1763391684524,0.64988817,95000.0,94981.0,0.1381]
[1763391684746,0.64988817,95000.0,94926.0,0.18686211]
[1763391684747,0.64988817,94991.0,94964.0,0.09214]
[1763391684960,0.64988817,95000.0,94920.0,0.00999999]
[1763391684961,3.0,94989.0,94981.0,0.00013185]
[1763391685173,3.02631911,94988.0,94981.0,0.00013185]
[1763391685387,3.0,94986.0,94981.0,0.00013185]
[1763391685595,0.21056621,94982.0,94981.0,0.00013185]
[1763391685831,3.01965165,94982.0,94981.0,0.00013185]
[1763391686023,3.07504165,94982.0,94981.0,0.00013185]
[1763391686243,3.01965165,94982.0,94981.0,0.00013185]
[1763391688061,0.04596046,94964.0,94944.0,1.00044101]
[1763391688270,3.0,94962.0,94944.0,1.00044101]
[1763391688484,0.66805338,94954.0,94944.0,1.00044101]
[1763391688694,2.91001707,94953.0,94944.0,1.00044101]
[1763391688919,3.0,94951.0,94944.0,1.00044101]
[1763391689142,3.0,94949.0,94944.0,1.00044101]
[1763391689350,0.03790939,95001.0,94944.0,1.00044101]
[1763391689351,3.0,94969.0,94945.0,0.25992627]
[1763391689558,0.323,94959.0,94944.0,1.00044101]
[1763391689772,0.04354608,94958.0,94944.0,1.00044101]
[1763391689980,0.01960908,94957.0,94944.0,1.00044101]
[1763391690194,0.01960908,94957.0,94945.0,0.00804616]
[1763391690430,0.323,94952.0,94944.0,1.00044101]
[1763391690631,0.323,94948.0,94944.0,1.00044101]
[1763391690837,3.0,94945.0,94944.0,0.92144101]
[1763391691051,3.323,94945.0,94944.0,0.92144101]
[1763391691262,3.41591874,94945.0,94944.0,0.92144101]
[1763391691504,3.43551693,94945.0,94944.0,0.92144101]
[1763391691720,3.39209819,94945.0,94944.0,0.92144101]
[1763391691919,3.34259819,94945.0,94944.0,0.92144101]
[1763391692070,3.323,94945.0,94944.0,0.92144101]
[1763391692278,0.323,94945.0,94944.0,0.92144101]
[1763391692896,0.3735,94945.0,94944.0,0.92144101]
[1763391693092,3.34357359,94945.0,94944.0,0.92144101]
[1763391693271,0.34257363,94945.0,94944.0,0.92144101]
[1763391693496,0.323,94945.0,94944.0,0.92144101]
[1763391693694,0.04808,94990.0,94944.0,0.92144101]
[1763391693695,3.0,94977.0,94944.0,1.10572511]
[1763391693879,0.019561,94976.0,94946.0,0.10416178]
[1763391694081,0.019561,94975.0,94947.0,0.00786982]
[1763391694305,0.019561,94974.0,94948.0,0.09214]
[1763391694504,0.019561,94973.0,94949.0,0.00892321]
[1763391694719,0.019561,94972.0,94949.0,0.06655117]
[1763391694925,3.0,94988.0,94950.0,0.09214]
[1763391695135,3.0,94986.0,94951.0,0.00944924]
[1763391695336,3.0,94984.0,94950.0,0.09214]
[1763391695599,0.0177095,94990.0,94944.0,0.92144101]
[1763391695600,3.0,94979.0,94944.0,0.92144101]
[1763391695815,3.0,94977.0,94948.0,0.10416178]
[1763391696014,3.0,94975.0,94949.0,0.10416178]
[1763391696220,3.0,94975.0,94944.0,0.92144101]
[1763391696221,0.66805338,94980.0,94944.0,0.92144101]
[1763391696222,0.66805338,94960.0,94944.0,0.92144101]
[1763391696425,3.04341874,94955.0,94944.0,0.92144101]
[1763391696640,0.04341874,94945.0,94944.0,0.92144101]
[1763391696873,3.06974977,94945.0,94944.0,0.92144101]
[1763391697083,3.11248469,94945.0,94944.0,0.92144101]
[1763391697290,3.11348469,94945.0,94944.0,0.92144101]
[1763391697496,3.06298469,94945.0,94944.0,0.92144101]
[1763391697703,3.01956595,94945.0,94944.0,0.92144101]
[1763391697908,2.86329016,94945.0,94944.0,0.89244101]
[1763391698114,2.70415154,94945.0,94944.0,0.89244101]
[1763391698319,0.001,94960.0,94944.0,0.89244101]
[1763391698695,0.001,94960.0,94945.0,0.00496863]
[1763391698900,3.0,94987.0,94953.0,0.10416178]
[1763391699078,0.66805338,94990.0,94954.0,0.00539027]
[1763391699079,0.01749249,94969.0,94954.0,0.00539027]
[1763391699280,3.0,94985.0,94946.0,0.09214]
[1763391699514,0.0495,94989.0,94946.0,0.09214]
[1763391699515,3.0,94983.0,94949.0,0.0078479]
[1763391699718,0.01921312,94982.0,94950.0,0.09998781]
[1763391699928,0.01921312,94982.0,94944.0,0.89244101]
[1763391699929,0.01052853,94980.0,94944.0,0.89244101]
[1763391700134,3.0,94976.0,94944.0,0.89244101]
[1763391700335,0.04341874,94969.0,94944.0,0.89244101]
[1763391700538,0.001,94945.0,94944.0,0.89244101]
[1763391700953,3.0,94967.0,94944.0,0.89244101]
[1763391701164,0.66805338,94970.0,94946.0,0.10416178]
[1763391701368,0.002,94980.0,94946.0,0.10416178]
[1763391701591,3.0,94989.0,94946.0,0.10416178]
[1763391702021,3.0,94988.0,94946.0,0.19630178]
[1763391702240,0.001,94967.0,94946.0,0.19630178]
[1763391702475,0.001,94967.0,94961.0,0.10416178]
[1763391702685,3.0,94987.0,94962.0,0.00776556]
[1763391702888,3.0,94985.0,94948.0,0.09990556]
[1763391703123,0.01984012,94984.0,94961.0,0.10416178]
[1763391703327,0.001,94989.0,94983.0,0.02474]
[1763391703986,0.001,94989.0,94983.0,0.02274]
[1763391704209,0.001,94989.0,94976.0,0.09214]
[1763391704444,0.001,94989.0,94985.0,0.10416178]
[1763391704665,0.01784415,95017.0,94987.0,0.04341874]
[1763391704890,0.02630499,95039.0,95016.0,0.10416178]
[1763391705098,0.59994939,95060.0,95016.0,0.13788178]
[1763391705099,3.0,95042.0,95016.0,0.13788178]
[1763391705322,0.01771145,95049.0,95017.0,0.10492818]
[1763391705530,3.0,95075.0,95017.0,0.09114]
[1763391705739,0.00941549,95074.0,95017.0,0.09273379]
[1763391705911,3.0,95073.0,95017.0,0.09114]
[1763391706264,3.0,95059.0,95018.0,0.10416178]
[1763391706461,3.0,95057.0,95019.0,0.00644008]
[1763391706663,3.0,95073.0,95020.0,0.04341874]
[1763391706868,3.0,95073.0,95018.0,0.10416178]
[1763391706869,0.01082437,95072.0,95018.0,0.10416178]
[1763391707047,3.0,95071.0,95019.0,0.01378818]
[1763391707223,3.0,95069.0,95020.0,0.09214]
[1763391707426,3.0,95067.0,95020.0,0.09214]
[1763391707628,3.0,95065.0,95036.0,0.10416178]
[1763391707959,3.0,95063.0,95037.0,0.00541069]
[1763391708155,3.0,95061.0,95037.0,0.00541069]
[1763391708432,0.02209799,95060.0,95037.0,0.00541069]
[1763391708663,0.001,95059.0,95038.0,0.10416178]
[1763391708899,0.001,95059.0,95039.0,0.00267035]
[1763391709141,3.0,95058.0,95039.0,0.00267035]
[1763391709349,0.01392074,95057.0,95040.0,0.10416178]
[1763391709564,0.001,95061.0,95041.0,0.00646317]
[1763391710014,0.01950386,95060.0,95041.0,0.00646317]
[1763391710266,0.01111832,95074.0,95042.0,0.09214]
[1763391710267,0.01950386,95059.0,95042.0,0.09214]
[1763391710560,0.01950386,95058.0,95042.0,0.09214]
[1763391710734,0.01950386,95057.0,95043.0,0.00856593]
[1763391710941,0.08806,95073.0,95018.0,0.10416178]
[1763391710942,0.01950386,95056.0,95018.0,0.19630178]
[1763391711150,3.03755373,95055.0,95018.0,0.19630178]
[1763391711365,3.0,95053.0,95018.0,0.19630178]
[1763391711573,0.02019998,95090.0,95033.0,0.10416178]
[1763391711574,0.01950386,95052.0,95033.0,0.10416178]
[1763391711781,0.09038,95072.0,95033.0,0.10416178]
[1763391711782,0.01950386,95051.0,95034.0,0.00488385]
[1763391712002,3.0,95068.0,95034.0,0.00488385]
[1763391712205,3.0,95057.0,95019.0,0.09214]
[1763391712381,0.04197835,95056.0,95020.0,0.00486904]
[1763391712625,0.04341874,95067.0,95019.0,0.09214]
[1763391712626,0.01950386,95055.0,95033.0,0.10416178]
[1763391712872,0.01950386,95054.0,95048.0,0.10416178]
[1763391713142,0.001,95051.0,95049.0,0.00381489]
[1763391713358,0.001,95051.0,95049.0,0.09595489]
[1763391713595,0.00044058,95074.0,95049.0,0.14264489]
[1763391713834,0.001,95055.0,95049.0,0.14264489]
[1763391714074,0.001,95055.0,95049.0,0.13883]
[1763391714333,0.01950396,95054.0,95034.0,0.00369808]
[1763391714572,0.001,95055.0,95041.0,0.04507]
[1763391714805,0.01949387,95054.0,95042.0,0.00474999]
[1763391715052,0.01949356,95053.0,95042.0,0.00474999]
[1763391715287,0.001,95055.0,95042.0,0.00474999]
[1763391715288,0.01949356,95052.0,95042.0,0.00474999]
[1763391715527,3.0,95069.0,95042.0,0.00474999]
[1763391715748,3.0,95067.0,95048.0,0.10416178]
[1763391715969,3.0,95065.0,95049.0,0.00580235]
[1763391716211,0.04500509,95064.0,95042.0,0.00855861]
[1763391716431,0.01948335,95063.0,95042.0,0.00855861]
[1763391716650,0.01948335,95062.0,95042.0,0.00855861]
[1763391716905,0.01948335,95061.0,95042.0,0.09894861]
[1763391717130,0.02036582,95074.0,95042.0,0.09894861]
[1763391717131,0.01948335,95060.0,95048.0,0.10416178]
[1763391717362,0.00044058,95074.0,95049.0,0.00645379]
[1763391717591,0.00107277,95079.0,95073.0,0.10416178]
[1763391717812,0.00120483,95079.0,95078.0,0.04507]
[1763391718038,0.02066781,95079.0,95078.0,0.04507]
[1763391718285,0.02066781,95079.0,95051.0,0.09039]
[1763391718499,0.01946298,95078.0,95067.0,0.10416178]
[1763391718746,0.01946298,95077.0,95068.0,0.00856574]
[1763391718957,0.01946298,95076.0,95068.0,0.00856574]
[1763391719175,0.01946298,95075.0,95068.0,0.00856574]
[1763391719415,0.00120483,95079.0,95069.0,0.09039]
[1763391719667,0.00120483,95079.0,95070.0,0.00856555]
[1763391720135,0.00120483,95079.0,95068.0,0.09039]
[1763391720349,0.00120483,95079.0,95069.0,0.09039]
[1763391720582,0.00120483,95079.0,95070.0,0.04341874]
[1763391720806,0.00120483,95079.0,95069.0,0.09039]
[1763391721043,0.00120483,95079.0,95055.0,0.09039]
[1763391721044,3.0,95078.0,95055.0,0.09039]
[1763391721272,3.0,95078.0,95041.0,0.04507]
[1763391721273,0.323,95067.0,95041.0,0.04507]
[1763391721501,3.0,95064.0,95041.0,0.04507]
[1763391721728,0.01071635,95090.0,95042.0,0.09144214]
[1763391721729,0.0002,95090.0,95042.0,0.09144214]
[1763391721975,0.0002,95090.0,95078.0,0.04507]
[1763391722427,0.0002,95090.0,95078.0,0.13546]
[1763391724492,0.0002,95090.0,95079.0,0.04341874]
[1763391724710,0.0002,95090.0,95079.0,0.09039]
[1763391725147,0.0002,95090.0,95089.0,0.10416178]
[1763391725372,0.246991,95100.0,95090.0,0.04341874]
[1763391725596,0.002,95119.0,95090.0,0.04341874]
[1763391725859,0.00213201,95119.0,95118.0,0.14923178]
[1763391726076,0.00213201,95119.0,95118.0,0.04507]
[1763391726556,0.00213201,95119.0,95118.0,0.13546]
[1763391726777,0.00213201,95119.0,95118.0,0.149006]
[1763391726998,0.0002,95140.0,95118.0,0.13546]
[1763391727201,0.01760436,95163.0,95120.0,0.04341874]
[1763391727412,0.01944609,95158.0,95121.0,0.09039]
[1763391727653,0.00213199,95159.0,95139.0,0.03095]
[1763391727872,3.0,95156.0,95121.0,0.09039]
[1763391728082,0.03419989,95155.0,95121.0,0.09039]
[1763391728312,3.0,95153.0,95123.0,0.10416178]
[1763391728536,3.0,95153.0,95121.0,0.09039]
[1763391728537,3.0,95151.0,95122.0,0.10416178]
[1763391728757,3.0,95149.0,95122.0,0.10416178]
[1763391728988,0.00213199,95159.0,95122.0,0.10416178]
[1763391728989,0.0194459,95148.0,95123.0,0.09039]
[1763391729216,0.00213199,95159.0,95141.0,0.10416178]
[1763391729445,0.01946838,95158.0,95137.0,0.10416178]
[1763391729667,0.01946838,95157.0,95153.0,0.10416178]
[1763391729884,0.00213199,95159.0,95158.0,0.04507]
[1763391730320,0.00213199,95159.0,95158.0,0.13546]
[1763391730539,1.99e-06,95159.0,95158.0,0.13546]
[1763391730751,0.0002,95190.0,95159.0,0.13380874]
[1763391730977,0.0002,95190.0,95161.0,0.04341874]
[1763391731196,0.00033186,95190.0,95161.0,0.04341874]
[1763391731406,0.00033186,95190.0,95162.0,0.09039]
[1763391731618,0.00033186,95190.0,95163.0,0.04341874]
[1763391731849,0.00033186,95190.0,95189.0,0.10416178]
[1763391732073,0.002,95199.0,95190.0,0.04341874]
[1763391732322,0.002,95199.0,95190.0,0.13380874]
[1763391732530,0.02241521,95249.0,95192.0,0.04341874]
[1763391732531,0.02624809,95245.0,95192.0,0.04341874]
[1763391732748,0.61777855,95230.0,95189.0,0.10416178]
[1763391732951,0.61777855,95230.0,95193.0,0.09039]
[1763391732952,0.0262525,95229.0,95193.0,0.09039]
[1763391733156,0.0262525,95229.0,95194.0,0.01915666]
[1763391733378,0.323,95208.0,95177.0,0.09039]
[1763391733626,0.323,95204.0,95178.0,0.01914598]
[1763391733836,0.60014939,95210.0,95179.0,0.01914598]
[1763391733837,0.0002,95210.0,95179.0,0.01914598]
[1763391734062,0.0002,95210.0,95206.0,0.04507]
[1763391734508,0.0002,95210.0,95186.0,0.10416178]
[1763391734746,0.36641874,95209.0,95190.0,0.001]
[1763391734956,0.36641874,95209.0,95158.0,0.04507]
[1763391734957,0.36641874,95196.0,95158.0,0.04507]
[1763391735166,0.36641874,95188.0,95159.0,0.10416178]
[1763391735399,0.323,95188.0,95174.0,0.10416178]
[1763391735609,0.323,95198.0,95175.0,0.00107706]
[1763391735818,0.323,95198.0,95159.0,0.10416178]
[1763391735819,3.0,95196.0,95176.0,0.00107705]
[1763391736024,3.0,95194.0,95158.0,0.04550979]
[1763391736224,3.0,95194.0,95159.0,0.09719]
[1763391736429,0.59994939,95200.0,95168.0,0.10416178]
[1763391736637,0.01813874,95199.0,95168.0,0.10416178]
[1763391736855,0.00223068,95169.0,95168.0,0.10416178]
[1763391737059,0.00223068,95169.0,95159.0,0.09719]
[1763391737273,0.001,95196.0,95168.0,0.10416178]
[1763391737495,0.04341874,95194.0,95159.0,0.09719]
[1763391737699,3.0,95192.0,95169.0,0.10416178]
[1763391737932,3.0,95203.0,95170.0,0.09719]
[1763391738152,0.01972649,95202.0,95171.0,0.10416178]
[1763391738402,0.21009065,95197.0,95158.0,0.04550979]
[1763391738659,3.0,95199.0,95159.0,0.0191158]
[1763391738660,0.00231323,95172.0,95159.0,0.0191158]
[1763391738886,0.04341874,95185.0,95160.0,0.0191158]
[1763391739140,0.61045469,95190.0,95158.0,0.00043979]
[1763391739141,3.0,95169.0,95158.0,0.00043979]
[1763391739355,3.03823,95159.0,95158.0,0.00043979]
[1763391739574,3.0,95179.0,95158.0,0.00043979]
[1763391739803,0.04341874,95176.0,95158.0,0.00043979]
[1763391740015,0.04341874,95174.0,95158.0,0.00043979]
[1763391740236,0.04341874,95170.0,95158.0,0.00043979]
[1763391740457,3.0,95167.0,95158.0,0.00043979]
[1763391740884,0.59994939,95180.0,95158.0,0.00043979]
[1763391741107,0.01776672,95176.0,95159.0,0.10416178]
[1763391741332,0.001,95185.0,95159.0,0.21181194]
[1763391741549,0.001,95185.0,95175.0,0.03534]
[1763391741769,0.001,95185.0,95161.0,0.01914103]
[1763391741981,3.0,95184.0,95162.0,0.12330281]
[1763391742226,0.001,95185.0,95177.0,0.10416178]
[1763391742475,0.001,95185.0,95178.0,0.09719]
[1763391742707,0.01798919,95197.0,95178.0,0.09719]
[1763391742946,0.01798919,95197.0,95165.0,0.01915779]
[1763391742947,0.001,95170.0,95165.0,0.01915779]
[1763391743171,0.001,95170.0,95169.0,0.10416178]
[1763391743380,0.001,95170.0,95169.0,0.20135178]
[1763391743579,3.0,95197.0,95169.0,0.10416178]
[1763391743806,0.01419674,95196.0,95169.0,0.10416178]
[1763391744026,3.01557224,95195.0,95169.0,0.10416178]
[1763391744261,3.01557224,95195.0,95160.0,0.04895]
[1763391744262,0.01557224,95195.0,95160.0,0.04895]
[1763391744490,0.01557224,95195.0,95158.0,0.09762979]
[1763391744491,3.0,95188.0,95158.0,0.00043979]
[1763391744712,0.04341874,95185.0,95158.0,0.00043979]
[1763391744934,3.02626491,95184.0,95158.0,0.00043979]
[1763391745187,3.0,95183.0,95158.0,0.00043979]
[1763391745429,2.82103535,95182.0,95158.0,0.00043979]
[1763391745638,3.0,95180.0,95158.0,0.00043979]
[1763391745866,0.59994939,95190.0,95158.0,0.00043979]
[1763391745867,3.0,95178.0,95158.0,0.00043979]
[1763391746089,3.04341874,95189.0,95169.0,0.001]
[1763391746323,0.01881449,95188.0,95169.0,0.001]
[1763391746539,0.01881449,95188.0,95160.0,0.10416178]
[1763391746540,0.01816349,95187.0,95166.0,0.09426]
[1763391746766,0.04341874,95198.0,95158.0,0.00043979]
[1763391746767,0.04341874,95193.0,95158.0,0.00043979]
[1763391746972,3.0,95190.0,95164.0,0.10416178]